fUST/lending_fUST_20251231
["ID","MTS","AMOUNT","RATE_DAILY","PERIOD"]
[400206798,1767195735257,500.0,0.00010645,2]
[400206799,1767195735346,500.0,0.00010645,2]
[400206800,1767195735439,500.0,0.00010645,2]
[400206801,1767195735525,500.0,0.00010645,2]
[400206802,1767195735623,500.0,0.00010645,2]
[400206803,1767195735732,500.0,0.00010645,2]
[400206804,1767195735826,382.28824656,0.00010645,2]
[400206805,1767195742545,33.51805354,0.00010645,2]
[400206806,1767195742621,956.38037298,0.00010645,2]
[400206807,1767195742706,989.89842652,0.00010645,2]
[400206808,1767195742791,989.89842652,0.00010645,2]
[400206809,1767195742875,989.89842652,0.00010645,2]
[400206810,1767195742980,989.89842652,0.00010645,2]
[400206811,1767195743064,989.89842652,0.00010645,2]
[400206812,1767195743156,989.89842652,0.00010645,2]
[400206813,1767195743262,989.89842652,0.00010645,2]
[400206814,1767195743354,989.89842652,0.00010645,2]
[400206815,1767195743449,989.89842652,0.00010645,2]
[400206816,1767195743570,134.54378834,0.00010645,2]
[400206817,1767195743655,855.35463818,0.00010645,2]
[400206819,1767195744478,262.62674698,0.00010645,2]
[400206822,1767195752838,500.0,0.00010645,2]
[400206823,1767195752923,500.0,0.00010645,2]
[400206824,1767195753000,500.0,0.00010645,2]
[400206825,1767195753075,500.0,0.00010645,2]
[400206826,1767195753149,500.0,0.00010645,2]
[400206827,1767195753238,500.0,0.00010645,2]
[400206828,1767195753323,500.0,0.00010645,2]
[400206829,1767195753416,500.0,0.00010645,2]
[400206830,1767195753528,565.42160377,0.00010645,2]
[400206831,1767195753625,500.0,0.00010645,2]
[400206832,1767195753715,500.0,0.00010645,2]
[400206833,1767195753801,680.07307485,0.00010645,2]
[400206834,1767195753892,680.07307485,0.00010645,2]
[400206835,1767195753984,500.0,0.00010645,2]
[400206836,1767195754066,500.0,0.00010645,2]
[400206837,1767195754149,500.0,0.00010645,2]
[400206838,1767195754243,456.46086137,0.00010645,2]
[400206839,1767195754326,43.53913863,0.00010645,2]
[400206840,1767195754428,680.07307485,0.00010645,2]
[400206841,1767195754516,500.0,0.00010645,2]
[400206842,1767195754599,680.07307485,0.00010645,2]
[400206843,1767195754679,500.0,0.00010645,2]
[400206844,1767195754963,500.0,0.00010645,2]
[400206845,1767195755166,680.07307485,0.00010645,2]
[400206846,1767195755249,500.0,0.00010645,2]
[400206847,1767195755329,680.07307485,0.00010645,2]
[400206848,1767195755423,500.0,0.00010645,2]
[400206849,1767195755506,500.0,0.00010645,2]
[400206850,1767195755617,500.0,0.00010645,2]
[400206851,1767195755722,500.0,0.00010645,2]
[400206852,1767195755807,500.0,0.00010645,2]
[400206853,1767195755894,500.0,0.00010645,2]
[400206854,1767195755978,500.0,0.00010645,2]
[400206855,1767195756059,500.0,0.00010645,2]
[400206856,1767195756135,500.0,0.00010645,2]
[400206857,1767195756225,500.0,0.00010645,2]
[400206858,1767195756323,236.17856197,0.00010645,2]
[400206859,1767195756409,263.82143803,0.00010645,2]
[400206860,1767195756499,500.0,0.00010645,2]
[400206861,1767195756618,500.0,0.00010645,2]
[400206862,1767195756727,500.0,0.00010645,2]
[400206863,1767195756827,500.0,0.00010645,2]
[400206864,1767195763250,500.0,0.00010645,2]
[400206865,1767195763343,500.0,0.00010645,2]
[400206866,1767195763425,500.0,0.00010645,2]
[400206867,1767195763507,500.0,0.00010645,2]
[400206868,1767195763589,350.0,0.00010645,2]
[400206869,1767195763666,500.0,0.00010645,2]
[400206870,1767195763743,500.0,0.00010645,2]
[400206871,1767195763823,500.0,0.00010645,2]
[400206872,1767195763899,500.0,0.00010645,2]
[400206873,1767195763980,500.0,0.00010645,2]
[400206874,1767195764057,500.0,0.00010645,2]
[400206875,1767195764145,500.0,0.00010645,2]
[400206876,1767195764224,500.0,0.00010645,2]
[400206877,1767195764297,500.0,0.00010645,2]
[400206878,1767195764379,500.0,0.00010645,2]
[400206879,1767195764458,386.18856197,0.00010645,2]
[400206880,1767195764529,113.81143803,0.00010645,2]
[400206881,1767195764604,500.0,0.00010645,2]
[400206882,1767195764681,500.0,0.00010645,2]
[400206883,1767195764760,500.0,0.00010645,2]
[400206884,1767195764850,500.0,0.00010645,2]
[400206885,1767195764935,500.0,0.00010645,2]
[400206886,1767195770348,500.0,0.00010645,2]
[400206887,1767195770792,500.0,0.00010645,2]
[400206888,1767195770870,500.0,0.00010645,2]
[400206889,1767195770947,325.7346394,0.00010645,2]
[400206905,1767195791373,5560.46392257,0.00010086,2]
[400206907,1767195791443,4439.53607743,0.00010086,2]
[400206987,1767196076811,5560.47392257,0.00010546,2]
[400206988,1767196076909,10000.01,0.00010546,2]
[400206989,1767196076998,10000.01,0.00010546,2]
[400206990,1767196077087,10000.01,0.00010546,2]
[400206991,1767196077177,10000.01,0.00010546,2]
[400206992,1767196077266,10000.01,0.00010546,2]
[400206993,1767196077375,10000.01,0.00010546,2]
[400206994,1767196077487,10000.01,0.00010546,2]
[400206995,1767196077580,10000.01,0.00010546,2]
[400206996,1767196077682,10000.01,0.00010546,2]
[400206997,1767196099627,-2232.213552,0.0001044,2]
[400206998,1767196103315,5000.0,0.0001044,2]
[400207008,1767196125059,-196.07388025,0.00010546,2]
[400207009,1767196127333,5000.0,0.00010546,2]
[400207010,1767196128292,-225.11836958,0.00010546,2]
[400207011,1767196134220,-170.42599167,0.00010546,2]
[400207012,1767196135746,-326.35917413,0.00010546,2]
[400207040,1767196142533,300.0,0.00010545,2]
[400207048,1767196143208,-247.48270903,0.00010546,2]
[400207060,1767196144717,-256.78040664,0.00010546,2]
[400207103,1767196150341,4700.01,0.00010546,2]
[400207105,1767196150420,299.99,0.00010546,2]
[400207109,1767196150803,-300.0,0.00010546,2]
[400207111,1767196152137,-17461.60983266,0.00010546,2]
[400207113,1767196152753,-296.11339274,0.00010546,2]
[400207147,1767196160128,-1747.86107678,0.00010546,2]
[400207148,1767196160170,-410.74798259,0.00010546,2]
[400207149,1767196161536,-300.0,0.00010546,2]
[400207150,1767196162157,-1851.57897792,0.00010546,2]
[400207151,1767196166900,-431.74663928,0.00010546,2]
[400207152,1767196168394,-250.35301802,0.00010546,2]
[400207160,1767196173938,5000.0,0.00010546,2]
[400207161,1767196175584,-175.20227849,0.00010546,2]
[400207163,1767196183769,-202.61567037,0.00010546,2]
[400207164,1767196191796,-327.31020534,0.00010546,2]
[400207165,1767196196883,161.83602163,0.00010495,2]
[400207166,1767196197143,3330.76139646,0.00010546,2]
[400207168,1767196199112,-269.04311953,0.00010546,2]
[400207169,1767196200680,-289.2271257,0.00010546,2]
[400207173,1767196201473,300.0,0.00010545,2]
[400207175,1767196202181,300.0,0.00010545,2]
[400207178,1767196206963,235.0,0.00010545,2]
[400207179,1767196207227,-309.02438318,0.00010546,2]
[400207183,1767196220544,372.42258191,0.00010546,2]
[400207184,1767196220636,822.18225184,0.00010546,2]
[400207220,1767196235167,-396.51794607,0.00010546,2]
[400207221,1767196235277,-10000.01,0.00010546,2]
[400207235,1767196238683,-867998.23389746,0.00010546,2]
[400207236,1767196238693,-568.0,0.00010546,2]
[400207237,1767196238702,-317.15830529,0.00010595,2]
[400207238,1767196238713,-500.0,0.00010645,2]
[400207239,1767196238723,-500.0,0.00010645,2]
[400207240,1767196238732,-500.0,0.00010645,2]
[400207241,1767196238741,-500.0,0.00010645,2]
[400207242,1767196238751,-403.77442637,0.00010645,2]
[400207243,1767196238760,-500.0,0.00010645,2]
[400207244,1767196238770,-500.0,0.00010645,2]
[400207245,1767196238780,-500.0,0.00010645,2]
[400207247,1767196238790,-500.0,0.00010645,2]
[400207249,1767196238799,-500.0,0.00010645,2]
[400207251,1767196238809,-500.0,0.00010645,2]
[400207253,1767196238818,-500.0,0.00010645,2]
[400207254,1767196238828,-500.0,0.00010645,2]
[400207255,1767196238837,-500.0,0.00010645,2]
[400207256,1767196238847,-500.0,0.00010645,2]
[400207257,1767196238856,-500.0,0.00010645,2]
[400207258,1767196238866,-500.0,0.00010645,2]
[400207259,1767196238876,-500.0,0.00010645,2]
[400207260,1767196238886,-500.0,0.00010645,2]
[400207261,1767196238896,-500.0,0.00010645,2]
[400207262,1767196238906,-500.0,0.00010645,2]
[400207263,1767196238915,-500.0,0.00010645,2]
[400207264,1767196238925,-500.0,0.00010645,2]
[400207265,1767196238935,-500.0,0.00010645,2]
[400207266,1767196238945,-500.0,0.00010645,2]
[400207267,1767196238954,-500.0,0.00010645,2]
[400207268,1767196238964,-500.0,0.00010645,2]
[400207269,1767196238974,-500.0,0.00010645,2]
[400207270,1767196238985,-500.0,0.00010645,2]
[400207271,1767196238995,-500.0,0.00010645,2]
[400207272,1767196239004,-500.0,0.00010645,2]
[400207273,1767196239014,-500.0,0.00010645,2]
[400207274,1767196239024,-500.0,0.00010645,2]
[400207275,1767196239034,-500.0,0.00010645,2]
[400207276,1767196239045,-500.0,0.00010645,2]
[400207277,1767196239055,-500.0,0.00010645,2]
[400207278,1767196239064,-500.0,0.00010645,2]
[400207279,1767196239075,-500.0,0.00010645,2]
[400207280,1767196239084,-500.0,0.00010645,2]
[400207281,1767196239094,-500.0,0.00010645,2]
[400207282,1767196239104,-500.0,0.00010645,2]
[400207283,1767196239114,-500.0,0.00010645,2]
[400207284,1767196239124,-500.0,0.00010645,2]
[400207285,1767196239134,-500.0,0.00010645,2]
[400207286,1767196239144,-500.0,0.00010645,2]
[400207287,1767196239155,-500.0,0.00010645,2]
[400207288,1767196239164,-500.0,0.00010645,2]
[400207289,1767196239174,-500.0,0.00010645,2]
[400207290,1767196239184,-500.0,0.00010645,2]
[400207291,1767196239193,-500.0,0.00010645,2]
[400207292,1767196239204,-500.0,0.00010645,2]
[400207293,1767196239213,-500.0,0.00010645,2]
[400207294,1767196239223,-500.0,0.00010645,2]
[400207295,1767196239233,-500.0,0.00010645,2]
[400207296,1767196239242,-500.0,0.00010645,2]
[400207297,1767196239251,-500.0,0.00010645,2]
[400207298,1767196239260,-500.0,0.00010645,2]
[400207299,1767196239269,-500.0,0.00010645,2]
[400207300,1767196239417,-500.0,0.00010645,2]
[400207301,1767196239427,-500.0,0.00010645,2]
[400207302,1767196239436,-500.0,0.00010645,2]
[400207303,1767196239446,-500.0,0.00010645,2]
[400207304,1767196239455,-500.0,0.00010645,2]
[400207305,1767196239465,-500.0,0.00010645,2]
[400207306,1767196239474,-500.0,0.00010645,2]
[400207307,1767196239484,-500.0,0.00010645,2]
[400207308,1767196239494,-500.0,0.00010645,2]
[400207309,1767196239507,-500.0,0.00010645,2]
[400207310,1767196239517,-500.0,0.00010645,2]
[400207311,1767196239526,-500.0,0.00010645,2]
[400207312,1767196239536,-500.0,0.00010645,2]
[400207313,1767196239547,-500.0,0.00010645,2]
[400207314,1767196239557,-500.0,0.00010645,2]
[400207315,1767196239567,-500.0,0.00010645,2]
[400207316,1767196239576,-263.56808106,0.00010645,2]
[400207317,1767196239586,-500.0,0.00010645,2]
[400207318,1767196239596,-500.0,0.00010645,2]
[400207319,1767196239605,-500.0,0.00010645,2]
[400207320,1767196239615,-500.0,0.00010645,2]
[400207321,1767196239625,-500.0,0.00010645,2]
[400207322,1767196239635,-500.0,0.00010645,2]
[400207323,1767196239646,-500.0,0.00010645,2]
[400207324,1767196239655,-500.0,0.00010645,2]
[400207325,1767196239665,-500.0,0.00010645,2]
[400207326,1767196239675,-300.0,0.00010645,2]
[400207327,1767196239684,-500.0,0.00010645,2]
[400207328,1767196239693,-500.0,0.00010645,2]
[400207329,1767196239704,-500.0,0.00010645,2]
[400207330,1767196239713,-500.0,0.00010645,2]
[400207331,1767196239723,-500.0,0.00010645,2]
[400207332,1767196239732,-500.0,0.00010645,2]
[400207333,1767196239742,-500.0,0.00010645,2]
[400207334,1767196239752,-500.0,0.00010645,2]
[400207335,1767196239762,-500.0,0.00010645,2]
[400207336,1767196239771,-500.0,0.00010645,2]
[400207337,1767196239781,-500.0,0.00010645,2]
[400207338,1767196239791,-500.0,0.00010645,2]
[400207339,1767196239800,-500.0,0.00010645,2]
[400207340,1767196239809,-500.0,0.00010645,2]
[400207341,1767196239819,-500.0,0.00010645,2]
[400207342,1767196239829,-500.0,0.00010645,2]
[400207343,1767196239838,-500.0,0.00010645,2]
[400207344,1767196239847,-500.0,0.00010645,2]
[400207345,1767196239857,-500.0,0.00010645,2]
[400207346,1767196239866,-500.0,0.00010645,2]
[400207347,1767196239876,-500.0,0.00010645,2]
[400207348,1767196239886,-500.0,0.00010645,2]
[400207349,1767196239895,-500.0,0.00010645,2]
[400207350,1767196239905,-500.0,0.00010645,2]
[400207351,1767196239915,-300.0,0.00010645,2]
[400207352,1767196239924,-500.0,0.00010645,2]
[400207353,1767196239934,-500.0,0.00010645,2]
[400207354,1767196239943,-500.0,0.00010645,2]
[400207355,1767196239953,-500.0,0.00010645,2]
[400207356,1767196239963,-500.0,0.00010645,2]
[400207357,1767196239972,-500.0,0.00010645,2]
[400207358,1767196239982,-500.0,0.00010645,2]
[400207359,1767196239991,-274.04287696,0.00010645,2]
[400207360,1767196240001,-500.0,0.00010645,2]
[400207361,1767196240010,-500.0,0.00010645,2]
[400207362,1767196240020,-500.0,0.00010645,2]
[400207363,1767196240029,-500.0,0.00010645,2]
[400207364,1767196240039,-500.0,0.00010645,2]
[400207365,1767196240049,-500.0,0.00010645,2]
[400207366,1767196240059,-500.0,0.00010645,2]
[400207367,1767196240068,-619.46799518,0.00010645,2]
[400207368,1767196240077,-500.0,0.00010645,2]
[400207369,1767196240087,-500.0,0.00010645,2]
[400207370,1767196240096,-500.0,0.00010645,2]
[400207371,1767196240106,-500.0,0.00010645,2]
[400207372,1767196240115,-595.018,0.00010645,2]
[400207373,1767196240124,-500.0,0.00010645,2]
[400207374,1767196240134,-500.0,0.00010645,2]
[400207376,1767196240144,-500.0,0.00010645,2]
[400207378,1767196240153,-500.0,0.00010645,2]
[400207379,1767196240163,-500.0,0.00010645,2]
[400207380,1767196240172,-500.0,0.00010645,2]
[400207381,1767196240182,-500.0,0.00010645,2]
[400207382,1767196240192,-600.0,0.00010645,2]
[400207384,1767196240201,-155.55852274,0.00010645,2]
[400207385,1767196240210,-428.28769227,0.00010645,2]
[400207386,1767196240220,-151.0,0.00010646,2]
[400207387,1767196240229,-151.0,0.00010646,2]
[400207388,1767196240239,-151.0,0.00010646,2]
[400207389,1767196240248,-290.31903463,0.00010646,2]
[400207390,1767196240258,-151.0,0.00010646,2]
[400207391,1767196240267,-151.0,0.00010646,2]
[400207392,1767196240276,-151.0,0.00010646,2]
[400207394,1767196240285,-151.0,0.00010646,2]
[400207395,1767196240294,-151.0,0.00010646,2]
[400207397,1767196240303,-151.0,0.00010646,2]
[400207399,1767196240312,-151.0,0.00010646,2]
[400207401,1767196240322,-151.0,0.00010646,2]
[400207402,1767196240331,-151.0,0.00010646,2]
[400207403,1767196240341,-151.0,0.00010646,2]
[400207404,1767196240350,-151.0,0.00010646,2]
[400207405,1767196240361,-151.0,0.00010646,2]
[400207406,1767196240370,-242.32257062,0.00010646,2]
[400207407,1767196240379,-500.0,0.00010959,2]
[400207408,1767196240388,-500.0,0.00010959,2]
[400207409,1767196240398,-500.0,0.00010959,2]
[400207410,1767196240408,-500.0,0.00010959,2]
[400207411,1767196240417,-500.0,0.00010959,2]
[400207412,1767196240428,-500.0,0.00010959,2]
[400207413,1767196240437,-500.0,0.00010959,2]
[400207414,1767196240447,-573.15739026,0.00010959,2]
[400207415,1767196240458,-150.0,0.00012078,2]
[400207417,1767196240467,-151.0,0.000122,2]
[400207418,1767196240477,-604.71,0.00012329,2]
[400207419,1767196240486,-374.24680024,0.00012595,2]
[400207420,1767196240496,-151.0,0.000126,2]
[400207421,1767196240508,-151.0,0.00013,2]
[400207422,1767196240517,-50000.0,0.00013,2]
[400207423,1767196240526,-150.0,0.00013176,2]
[400207424,1767196240536,-151.0,0.000132,2]
[400207425,1767196240547,-500.0,0.00013273,2]
[400207426,1767196240556,-500.0,0.00013273,2]
[400207427,1767196240566,-489.48000919,0.00013273,2]
[400207428,1767196240576,-500.0,0.00013273,2]
[400207429,1767196240586,-500.0,0.00013273,2]
[400207430,1767196240596,-500.0,0.00013273,2]
[400207431,1767196240605,-500.0,0.00013273,2]
[400207432,1767196240615,-151.0,0.000133,2]
[400207433,1767196240624,-151.0,0.000134,2]
[400207435,1767196240636,-580.76,0.00013698,2]
[400207437,1767196240645,-587.48,0.00013698,2]
[400207438,1767196240654,-587.48,0.00013698,2]
[400207440,1767196240663,-587.48,0.00013698,2]
[400207442,1767196240673,-587.48,0.00013698,2]
[400207443,1767196240682,-587.48,0.00013698,2]
[400207444,1767196240691,-587.48,0.00013698,2]
[400207445,1767196240700,-587.48,0.00013698,2]
[400207446,1767196240710,-587.48,0.00013698,2]
[400207447,1767196240719,-587.48,0.00013698,2]
[400207448,1767196240728,-587.48,0.00013698,2]
[400207449,1767196240738,-587.48,0.00013698,2]
[400207450,1767196240747,-587.48,0.00013698,2]
[400207452,1767196240757,-587.48,0.00013698,2]
[400207453,1767196240767,-587.48,0.00013698,2]
[400207454,1767196240776,-587.48,0.00013698,2]
[400207455,1767196240785,-587.48,0.00013698,2]
[400207456,1767196240795,-587.48,0.00013698,2]
[400207457,1767196240804,-587.48,0.00013698,2]
[400207458,1767196240814,-587.48,0.00013698,2]
[400207459,1767196240823,-587.48,0.00013698,2]
[400207460,1767196240832,-587.48,0.00013698,2]
[400207461,1767196240842,-587.48,0.00013698,2]
[400207462,1767196240851,-587.48,0.00013698,2]
[400207463,1767196240860,-587.68781649,0.00013698,2]
[400207464,1767196240869,-703.461052,0.00013699,2]
[400207465,1767196240880,-500.0,0.00013699,2]
[400207466,1767196240890,-500.0,0.00013699,2]
[400207467,1767196240900,-158.38534385,0.00013699,2]
[400207468,1767196240910,-500.0,0.00013699,2]
[400207469,1767196240920,-500.0,0.00013699,2]
[400207470,1767196240929,-500.0,0.00013699,2]
[400207471,1767196240939,-500.0,0.00013699,2]
[400207472,1767196240948,-500.0,0.00013699,2]
[400207473,1767196240958,-500.0,0.00013699,2]
[400207474,1767196240967,-500.0,0.00013699,2]
[400207475,1767196240976,-500.0,0.00013699,2]
[400207476,1767196240985,-500.0,0.00013699,2]
[400207477,1767196240995,-500.0,0.00013699,2]
[400207478,1767196241004,-500.0,0.00013699,2]
[400207479,1767196241014,-500.0,0.00013699,2]
[400207480,1767196241023,-500.0,0.00013699,2]
[400207481,1767196241033,-500.0,0.00013699,2]
[400207482,1767196241042,-500.0,0.00013699,2]
[400207483,1767196241052,-500.0,0.00013699,2]
[400207484,1767196241062,-500.0,0.00013699,2]
[400207485,1767196241071,-500.0,0.00013699,2]
[400207486,1767196241080,-640.43328227,0.00013699,2]
[400207487,1767196241089,-151.0,0.000137,2]
[400207488,1767196241099,-1000.0,0.00013821,2]
[400207489,1767196241108,-556.87906344,0.00013821,2]
[400207490,1767196241117,-1000.0,0.00013821,2]
[400207491,1767196241127,-1000.0,0.00013821,2]
[400207492,1767196241136,-250.0,0.00013934,2]
[400207493,1767196241145,-998.30494915,0.0001403,2]
[400207494,1767196241155,-151.0,0.000141,2]
[400207495,1767196241164,-1000.0,0.00014247,2]
[400207496,1767196241174,-306.11286536,0.00014247,2]
[400207497,1767196241183,-1000.0,0.00014247,2]
[400207498,1767196241192,-439.9841302,0.00014247,2]
[400207499,1767196241201,-1000.0,0.00014247,2]
[400207500,1767196241210,-186.82,0.00014274,2]
[400207501,1767196241219,-1500.0,0.00014368,2]
[400207502,1767196241229,-1500.0,0.00014368,2]
[400207503,1767196241238,-1500.0,0.00014368,2]
[400207504,1767196241247,-151.0,0.000145,2]
[400207505,1767196241257,-431.33529519,0.00014595,2]
[400207506,1767196241266,-1163.70037163,0.00014795,2]
[400207507,1767196241275,-1500.0,0.00014795,2]
[400207508,1767196241285,-1500.0,0.00014795,2]
[400207509,1767196241294,-100000.0,0.00014882,2]
[400207510,1767196241303,-179.25919058,0.00014916,2]
[400207511,1767196241313,-1000.0,0.00014916,2]
[400207512,1767196241322,-2000.0,0.00014916,2]
[400207513,1767196241332,-1536.23,0.00015242,2]
[400207514,1767196241341,-161.83602163,0.00015274,2]
[400207515,1767196241350,-1500.0,0.00015342,2]
[400207516,1767196241360,-1500.0,0.00015342,2]
[400207517,1767196241369,-249.09,0.00015372,2]
[400207518,1767196241378,-2500.0,0.00015464,2]
[400207519,1767196241387,-2608.47131211,0.00016012,2]
[400207520,1767196241396,-311.37,0.0001647,2]
[400207521,1767196241407,-488.42379015,0.00016595,2]
[400207522,1767196241416,-998.30494915,0.00017114,2]
[400207523,1767196241426,-2156.0,0.00017121,2]
[400207524,1767196241436,-1364.0,0.00017121,2]
[400207525,1767196241445,-627.0,0.00017121,2]
[400207526,1767196241454,-150.0,0.00017121,2]
[400207527,1767196241464,-373.64,0.00017567,2]
[400207528,1767196241473,-1014.0,0.00017832,2]
[400207529,1767196241483,-1014.0,0.00017843,2]
[400207530,1767196241493,-1014.0,0.00017877,2]
[400207531,1767196241505,-1014.0,0.000179,2]
[400207532,1767196241515,-1041.66666667,0.00017939,2]
[400207533,1767196241524,-1014.0,0.00017953,2]
[400207534,1767196241534,-1014.0,0.00018051,2]
[400207535,1767196241545,-1014.0,0.00018138,2]
[400207536,1767196241555,-1014.0,0.00018145,2]
[400207537,1767196241565,-1014.0,0.00018167,2]
[400207538,1767196241575,-1014.0,0.0001854,2]
[400207539,1767196241585,-1014.0,0.00018566,2]
[400207540,1767196241594,-1014.0,0.00018595,2]
[400207541,1767196241603,-545.5122851,0.00018595,2]
[400207542,1767196241613,-435.91,0.00018665,2]
[400207543,1767196241622,-500.0,0.00018777,2]
[400207544,1767196241631,-250.0,0.00018777,2]
[400207545,1767196241640,-496.47127164,0.00018777,2]
[400207546,1767196241650,-500.0,0.00018777,2]
[400207547,1767196241661,-250.0,0.00018777,2]
[400207548,1767196241670,-500.0,0.00018777,2]
[400207549,1767196241679,-250.0,0.00018777,2]
[400207550,1767196241688,-500.0,0.00018777,2]
[400207551,1767196241697,-250.0,0.00018777,2]
[400207552,1767196241706,-500.0,0.00018777,2]
[400207553,1767196241716,-250.0,0.00018777,2]
[400207554,1767196241725,-500.0,0.00018777,2]
[400207555,1767196241734,-250.0,0.00018777,2]
[400207556,1767196241743,-500.0,0.00018777,2]
[400207557,1767196241753,-250.0,0.00018777,2]
[400207558,1767196241762,-500.0,0.00018777,2]
[400207559,1767196241772,-250.0,0.00018777,2]
[400207560,1767196241782,-500.0,0.00018777,2]
[400207561,1767196241791,-250.0,0.00018777,2]
[400207562,1767196241801,-500.0,0.00018777,2]
[400207563,1767196241811,-250.0,0.00018777,2]
[400207564,1767196241820,-500.0,0.00018777,2]
[400207565,1767196241830,-250.0,0.00018777,2]
[400207566,1767196241840,-500.0,0.00018777,2]
[400207567,1767196241850,-250.0,0.00018777,2]
[400207568,1767196241859,-500.0,0.00018777,2]
[400207569,1767196241869,-250.0,0.00018777,2]
[400207570,1767196241879,-500.0,0.00018777,2]
[400207571,1767196241888,-500.0,0.00018777,2]
[400207572,1767196241897,-790.08640191,0.00018777,2]
[400207573,1767196241908,-1014.0,0.000189,2]
[400207574,1767196241918,-1014.0,0.00018947,2]
[400207575,1767196241927,-1014.0,0.00019063,2]
[400207576,1767196241936,-1014.0,0.00019121,2]
[400207577,1767196241946,-500.0,0.00019178,2]
[400207578,1767196241956,-500.0,0.00019178,2]
[400207579,1767196241965,-500.0,0.00019178,2]
[400207580,1767196241974,-167.95184871,0.00019178,2]
[400207581,1767196241984,-500.0,0.00019178,2]
[400207582,1767196241993,-500.0,0.00019178,2]
[400207583,1767196242002,-500.0,0.00019178,2]
[400207584,1767196242013,-500.0,0.00019178,2]
[400207585,1767196242022,-500.0,0.00019178,2]
[400207586,1767196242031,-1014.0,0.00019192,2]
[400207587,1767196242041,-165.71,0.000192,2]
[400207588,1767196242051,-160.6,0.000192,2]
[400207589,1767196242059,-1038.33,0.000192,2]
[400207590,1767196242068,-10762.96,0.000192,2]
[400207591,1767196242078,-1014.0,0.00019248,2]
[400207592,1767196242088,-1014.0,0.00019284,2]
[400207594,1767196242098,-514.84070869,0.00019325,2]
[400207595,1767196242107,-1014.0,0.00019333,2]
[400207596,1767196242117,-1014.0,0.00019503,2]
[400207597,1767196242126,-1014.0,0.00019586,2]
[400207598,1767196242135,-1014.0,0.00019616,2]
[400207599,1767196242144,-1014.0,0.00019617,2]
[400207600,1767196242154,-1014.0,0.0001966,2]
[400207601,1767196242163,-498.19,0.00019763,2]
[400207602,1767196242174,-533.88981491,0.00019873,2]
[400207603,1767196242183,-624.02083153,0.0002,2]
[400207604,1767196242194,-973.48627721,0.0002,2]
[400207605,1767196242203,-161.83602163,0.00020052,2]
[400207606,1767196242212,-2156.0,0.00020121,2]
[400207607,1767196242221,-1364.0,0.00020121,2]
[400207608,1767196242230,-627.0,0.00020121,2]
[400207609,1767196242239,-150.0,0.00020121,2]
[400207610,1767196242249,-998.30494915,0.00020198,2]
[400207611,1767196242258,-553.64373807,0.00020421,2]
[400207612,1767196242268,-703.461052,0.00020548,2]
[400207613,1767196242279,-602.60078005,0.00020595,2]
[400207614,1767196242288,-150.0,0.000208,5]